[Event "*** Titled Tuesday 3|2 Blitz"]
[Site "Chess.com"]
[Date "2016.02.02"]
[Round "6"]
[White "ItalianMachine"]
[Black "Thomaslegend"]
[Result "1/2-1/2"]
[WhiteElo "2233"]
[BlackElo "2104"]
[TimeControl "180+2"]
[EndTime "18:11:22 PST"]
[Termination "Game drawn - insufficient material"]

1. d4 {[%clk 0:03:01.9]} 1... Nf6 {[%clk 0:03:00.4]} 2. c4 {[%clk 0:02:59.5]}
2... g6 {[%clk 0:03:01.6]} 3. Nc3 {[%clk 0:03:00.4]} 3... d5 {[%clk 0:03:02.1]}
4. g3 {[%clk 0:02:57]} 4... Bg7 {[%clk 0:02:59.5]} 5. Bg2 {[%clk 0:02:57.5]}
5... c6 {[%clk 0:02:56.3]} 6. Nf3 {[%clk 0:02:57.4]} 6... Ne4 {[%clk 0:02:54.6]}
7. O-O {[%clk 0:02:52.9]} 7... Nxc3 {[%clk 0:02:46.8]} 8. bxc3 {[%clk
0:02:54.8]} 8... dxc4 {[%clk 0:02:48.3]} 9. e4 {[%clk 0:02:39.5]} 9... b5 {[%clk
0:02:46.3]} 10. a4 {[%clk 0:02:35.1]} 10... Qc7 {[%clk 0:02:39.7]} 11. Bf4
{[%clk 0:02:32.9]} 11... Qb7 {[%clk 0:02:33.9]} 12. axb5 {[%clk 0:02:31.5]}
12... cxb5 {[%clk 0:02:33.2]} 13. e5 {[%clk 0:02:31.2]} 13... Be6 {[%clk
0:02:25]} 14. Ng5 {[%clk 0:01:28.3]} 14... Bd5 {[%clk 0:02:25.6]} 15. f3 {[%clk
0:01:26.5]} 15... O-O {[%clk 0:02:20.6]} 16. h4 {[%clk 0:01:19.8]} 16... Nd7
{[%clk 0:02:10.5]} 17. Qd2 {[%clk 0:01:11.1]} 17... a5 {[%clk 0:01:54.1]} 18.
Rfe1 {[%clk 0:01:05.5]} 18... b4 {[%clk 0:01:31]} 19. e6 {[%clk 0:01:04.8]}
19... fxe6 {[%clk 0:01:20.8]} 20. Nxe6 {[%clk 0:01:04]} 20... Bxe6 {[%clk
0:01:21.9]} 21. Rxe6 {[%clk 0:01:04.9]} 21... Nf6 {[%clk 0:01:10.8]} 22. Qe2
{[%clk 0:01:00.6]} 22... Nd5 {[%clk 0:01:05.2]} 23. Bg5 {[%clk 0:00:47.6]} 23...
Bf6 {[%clk 0:00:56.7]} 24. f4 {[%clk 0:00:44.5]} 24... Bxg5 {[%clk 0:00:51.9]}
25. hxg5 {[%clk 0:00:44]} 25... b3 {[%clk 0:00:39.4]} 26. Qxc4 {[%clk
0:00:42.6]} 26... b2 {[%clk 0:00:19.6]} 27. Rb1 {[%clk 0:00:42.3]} 27... Rad8
{[%clk 0:00:17]} 28. Re5 {[%clk 0:00:39]} 28... Rf5 {[%clk 0:00:17.3]} 29. Re2
{[%clk 0:00:31.3]} 29... Rc8 {[%clk 0:00:06.9]} 30. Bxd5+ {[%clk 0:00:18.6]}
30... Rxd5 {[%clk 0:00:04.9]} 31. Qd3 {[%clk 0:00:19.9]} 31... Qc7 {[%clk
0:00:04]} 32. Rc2 {[%clk 0:00:16.4]} 32... Qc4 {[%clk 0:00:04.7]} 33. Qxc4
{[%clk 0:00:16.3]} 33... Rxc4 {[%clk 0:00:06.3]} 34. Rbxb2 {[%clk 0:00:17.9]}
34... Kf7 {[%clk 0:00:07.8]} 35. Kf2 {[%clk 0:00:19.2]} 35... Ke6 {[%clk
0:00:09.4]} 36. Ke3 {[%clk 0:00:20.7]} 36... Kf5 {[%clk 0:00:10.8]} 37. Kf3
{[%clk 0:00:22.2]} 37... h5 {[%clk 0:00:11.4]} 38. gxh6 {[%clk 0:00:23.2]} 38...
a4 {[%clk 0:00:09.8]} 39. h7 {[%clk 0:00:23.2]} 39... Rd8 {[%clk 0:00:10.7]} 40.
Rh2 {[%clk 0:00:21.9]} 40... Rh8 {[%clk 0:00:11.3]} 41. g4+ {[%clk 0:00:23]}
41... Kf6 {[%clk 0:00:12.4]} 42. Ke4 {[%clk 0:00:22.7]} 42... a3 {[%clk
0:00:12.1]} 43. Rb6+ {[%clk 0:00:21.3]} 43... Kg7 {[%clk 0:00:12.9]} 44. f5
{[%clk 0:00:21.9]} 44... gxf5+ {[%clk 0:00:13.5]} 45. gxf5 {[%clk 0:00:23.1]}
45... Rxh7 {[%clk 0:00:14.4]} 46. Rxh7+ {[%clk 0:00:20.7]} 46... Kxh7 {[%clk
0:00:16.3]} 47. Kd3 {[%clk 0:00:22.1]} 47... Ra4 {[%clk 0:00:17.2]} 48. Rb1
{[%clk 0:00:22.1]} 48... Kg7 {[%clk 0:00:18.5]} 49. c4 {[%clk 0:00:16.9]} 49...
Kf6 {[%clk 0:00:19.7]} 50. c5 {[%clk 0:00:14.5]} 50... Kxf5 {[%clk 0:00:20.8]}
51. Kc3 {[%clk 0:00:10.5]} 51... Ke6 {[%clk 0:00:19.2]} 52. Kb3 {[%clk
0:00:07.9]} 52... Ra8 {[%clk 0:00:20]} 53. Kc4 {[%clk 0:00:05]} 53... Ra4+
{[%clk 0:00:20]} 54. Kd3 {[%clk 0:00:06.5]} 54... a2 {[%clk 0:00:19.6]} 55. Ra1
{[%clk 0:00:06.3]} 55... Kd5 {[%clk 0:00:21.2]} 56. Kc3 {[%clk 0:00:07.7]} 56...
e5 {[%clk 0:00:19.6]} 57. dxe5 {[%clk 0:00:08.5]} 57... Rc4+ {[%clk 0:00:19.9]}
58. Kb3 {[%clk 0:00:09.5]} 58... Rxc5 {[%clk 0:00:20.9]} 59. Rxa2 {[%clk
0:00:11]} 59... Kxe5 {[%clk 0:00:22.2]} 60. Kb4 {[%clk 0:00:12.5]} 60... Rd5
{[%clk 0:00:20.9]} 61. Ra5 {[%clk 0:00:13.6]} 61... Rxa5 {[%clk 0:00:21.8]} 62.
Kxa5 {[%clk 0:00:15.5]} 1/2-1/2

[Event "*** Titled Tuesday 3|2 Blitz"]
[Site "Chess.com"]
[Date "2016.02.02"]
[Round "6"]
[White "brauliocuarta"]
[Black "Silent_Terror"]
[Result "0-1"]
[WhiteElo "1982"]
[BlackElo "2490"]
[TimeControl "180+2"]
[EndTime "18:12:34 PST"]
[Termination "Silent_Terror won by resignation"]

1. d4 {[%clk 0:03:01.9]} 1... e6 {[%clk 0:03:01.9]} 2. c4 {[%clk 0:03:02.1]}
2... Bb4+ {[%clk 0:03:02.4]} 3. Nc3 {[%clk 0:03:02.6]} 3... c5 {[%clk 0:03:02]}
4. e3 {[%clk 0:03:04]} 4... Bxc3+ {[%clk 0:02:57.6]} 5. bxc3 {[%clk 0:03:04.1]}
5... d6 {[%clk 0:02:59.5]} 6. e4 {[%clk 0:02:53.9]} 6... b6 {[%clk 0:02:58]} 7.
Bd3 {[%clk 0:02:53.2]} 7... Nc6 {[%clk 0:02:58.7]} 8. Ne2 {[%clk 0:02:52.1]}
8... Na5 {[%clk 0:02:59.6]} 9. O-O {[%clk 0:02:45.6]} 9... Ba6 {[%clk
0:03:00.7]} 10. f4 {[%clk 0:02:42.9]} 10... Qd7 {[%clk 0:03:01.2]} 11. Ng3
{[%clk 0:02:10.3]} 11... Bxc4 {[%clk 0:02:51.8]} 12. f5 {[%clk 0:02:04.6]} 12...
e5 {[%clk 0:02:42.5]} 13. Bxc4 {[%clk 0:01:34]} 13... Nxc4 {[%clk 0:02:41.9]}
14. Qg4 {[%clk 0:01:25.3]} 14... f6 {[%clk 0:02:25.2]} 15. Nh5 {[%clk
0:01:20.9]} 15... Kf8 {[%clk 0:02:25]} 16. Rf3 {[%clk 0:01:17.4]} 16... Rc8
{[%clk 0:02:19.6]} 17. Rg3 {[%clk 0:01:17.7]} 17... Rc7 {[%clk 0:02:20.2]} 18.
Qe2 {[%clk 0:01:01]} 18... Na5 {[%clk 0:02:12.7]} 19. Rxg7 {[%clk 0:00:59.2]}
19... Qxg7 {[%clk 0:02:04.5]} 20. Nxg7 {[%clk 0:01:01.1]} 20... Kxg7 {[%clk
0:02:06.1]} 21. dxe5 {[%clk 0:00:57.5]} 21... dxe5 {[%clk 0:02:05.7]} 22. Qg4+
{[%clk 0:00:54.4]} 22... Kf7 {[%clk 0:02:06]} 23. Be3 {[%clk 0:00:50.3]} 23...
Nc4 {[%clk 0:02:06.5]} 24. Qh5+ {[%clk 0:00:45.8]} 24... Kg7 {[%clk 0:02:05.9]}
25. Bf2 {[%clk 0:00:41.9]} 25... Nh6 {[%clk 0:01:52]} 26. Rd1 {[%clk 0:00:38.8]}
26... Nf7 {[%clk 0:01:51.6]} 27. a4 {[%clk 0:00:32.4]} 27... Ncd6 {[%clk
0:01:35.2]} 28. Bh4 {[%clk 0:00:30.5]} 28... Nxe4 {[%clk 0:01:30.4]} 29. Qg4+
{[%clk 0:00:28.2]} 29... Neg5 {[%clk 0:01:31.5]} 30. Bxg5 {[%clk 0:00:27.7]}
30... fxg5 {[%clk 0:01:29]} 31. f6+ {[%clk 0:00:25]} 31... Kxf6 {[%clk
0:01:28.1]} 32. Rf1+ {[%clk 0:00:18.9]} 32... Ke7 {[%clk 0:01:17.5]} 33. h4
{[%clk 0:00:16.6]} 33... Rg8 {[%clk 0:01:07.3]} 34. hxg5 {[%clk 0:00:15.7]}
34... Rg6 {[%clk 0:01:00.4]} 35. Qf5 {[%clk 0:00:14.8]} 35... Kf8 {[%clk
0:00:57]} 36. Rd1 {[%clk 0:00:12.7]} 36... Kg7 {[%clk 0:00:48.9]} 37. Rd7 {[%clk
0:00:11]} 37... Rxd7 {[%clk 0:00:49.3]} 38. Qxd7 {[%clk 0:00:12.8]} 38... a5
{[%clk 0:00:48.2]} 39. c4 {[%clk 0:00:11]} 39... Rxg5 {[%clk 0:00:48.5]} 40. Qe6
{[%clk 0:00:09.7]} 40... Rg6 {[%clk 0:00:48.9]} 41. Qf5 {[%clk 0:00:10]} 41...
Rf6 {[%clk 0:00:46.9]} 42. Qg4+ {[%clk 0:00:09.9]} 42... Kf8 {[%clk 0:00:47.4]}
43. Qc8+ {[%clk 0:00:10.7]} 43... Ke7 {[%clk 0:00:46.1]} 44. Qc7+ {[%clk
0:00:11.6]} 44... Kf8 {[%clk 0:00:47.3]} 45. Qc8+ {[%clk 0:00:12.2]} 45... Kg7
{[%clk 0:00:48.9]} 46. Qg4+ {[%clk 0:00:12.8]} 46... Rg6 {[%clk 0:00:50.3]} 47.
Qf5 {[%clk 0:00:13.4]} 47... h6 {[%clk 0:00:50.9]} 48. Kh2 {[%clk 0:00:13]}
48... Rf6 {[%clk 0:00:51.8]} 49. Qg4+ {[%clk 0:00:13.4]} 49... Ng5 {[%clk
0:00:49.6]} 50. Qd7+ {[%clk 0:00:13.4]} 50... Kg6 {[%clk 0:00:50.8]} 51. Qe8+
{[%clk 0:00:11.9]} 51... Kf5 {[%clk 0:00:49.3]} 52. Qd7+ {[%clk 0:00:11]} 52...
Re6 {[%clk 0:00:45.5]} 53. Qd3+ {[%clk 0:00:06]} 53... e4 {[%clk 0:00:44.8]} 54.
Qf1+ {[%clk 0:00:07.5]} 54... Ke5 {[%clk 0:00:41.4]} 55. Qa1+ {[%clk 0:00:08.2]}
55... Kf4 {[%clk 0:00:40.1]} 56. Qf1+ {[%clk 0:00:07.6]} 56... Ke3 {[%clk
0:00:39]} 57. Qc1+ {[%clk 0:00:08]} 57... Kd3 {[%clk 0:00:39.1]} 58. Qb1+ {[%clk
0:00:06.4]} 58... Kxc4 {[%clk 0:00:39.7]} 59. Qb5+ {[%clk 0:00:05.8]} 59... Kc3
{[%clk 0:00:39.5]} 60. Kg3 {[%clk 0:00:06.1]} 60... e3 {[%clk 0:00:39.8]} 61.
Qe2 {[%clk 0:00:07.3]} 61... Ne4+ {[%clk 0:00:33.3]} 62. Kf4 {[%clk 0:00:07.1]}
62... Nd2 {[%clk 0:00:31.8]} 63. Kf5 {[%clk 0:00:06.8]} 63... Re8 {[%clk
0:00:25.1]} 64. Kg6 {[%clk 0:00:07.8]} 64... Nb3 {[%clk 0:00:21.4]} 65. Kxh6
{[%clk 0:00:07.7]} 65... Nd4 {[%clk 0:00:22.2]} 66. Qe1+ {[%clk 0:00:07.1]}
66... Kd3 {[%clk 0:00:21.6]} 67. Qd1+ {[%clk 0:00:07.9]} 67... Kc4 {[%clk
0:00:21.6]} 68. Qc1+ {[%clk 0:00:06.4]} 68... Kd5 {[%clk 0:00:21.8]} 69. g4
{[%clk 0:00:06.1]} 69... e2 {[%clk 0:00:22.6]} 70. Qh1+ {[%clk 0:00:06.3]} 70...
Re4 {[%clk 0:00:21.8]} 71. Qe1 {[%clk 0:00:05.1]} 71... Nf3 {[%clk 0:00:21.1]}
72. g5 {[%clk 0:00:05.2]} 72... Nxe1 {[%clk 0:00:21]} 73. g6 {[%clk 0:00:07.1]}
73... Re6 {[%clk 0:00:21.9]} 74. Kh7 {[%clk 0:00:07.3]} 74... Rxg6 {[%clk
0:00:22.9]} 75. Kxg6 {[%clk 0:00:07.9]} 75... Nd3 {[%clk 0:00:24.8]} 76. Kf5
{[%clk 0:00:09]} 76... e1=Q {[%clk 0:00:26.4]} 77. Kg4 {[%clk 0:00:10.3]} 77...
Qe5 {[%clk 0:00:26.9]} 78. Kf3 {[%clk 0:00:11.7]} 78... Qe4+ {[%clk 0:00:28.2]}
79. Kg3 {[%clk 0:00:12.5]} 79... Qf4+ {[%clk 0:00:29.3]} 80. Kg2 {[%clk
0:00:12]} 80... Qf2+ {[%clk 0:00:29.3]} 81. Kh1 {[%clk 0:00:11.8]} 81... Qf3+
{[%clk 0:00:28.4]} 82. Kh2 {[%clk 0:00:12.1]} 82... Qg4 {[%clk 0:00:28.7]} 83.
Kh1 {[%clk 0:00:11.7]} 83... Nf4 {[%clk 0:00:28.8]} 0-1

[Event "*** Titled Tuesday 3|2 Blitz"]
[Site "Chess.com"]
[Date "2016.02.02"]
[Round "6"]
[White "jcibarra"]
[Black "AndreyOstrovskiy"]
[Result "0-1"]
[WhiteElo "2493"]
[BlackElo "2461"]
[TimeControl "180+2"]
[EndTime "18:12:58 PST"]
[Termination "AndreyOstrovskiy won by resignation"]

1. e4 {[%clk 0:03:01.9]} 1... e5 {[%clk 0:03:00.7]} 2. Nf3 {[%clk 0:03:03]} 2...
Nc6 {[%clk 0:03:01.9]} 3. Bb5 {[%clk 0:03:04.3]} 3... a6 {[%clk 0:03:03.3]} 4.
Bxc6 {[%clk 0:03:05.4]} 4... dxc6 {[%clk 0:03:03.8]} 5. O-O {[%clk 0:03:07.3]}
5... Qf6 {[%clk 0:03:04.8]} 6. d4 {[%clk 0:03:07.8]} 6... exd4 {[%clk
0:03:06.2]} 7. Bg5 {[%clk 0:03:09.3]} 7... Qd6 {[%clk 0:03:07.4]} 8. Nxd4 {[%clk
0:03:10.6]} 8... Bd7 {[%clk 0:03:03.2]} 9. Nc3 {[%clk 0:03:06.5]} 9... Ne7
{[%clk 0:02:58.5]} 10. Bh4 {[%clk 0:03:07.6]} 10... O-O-O {[%clk 0:02:54.3]} 11.
Bg3 {[%clk 0:03:08.7]} 11... Qg6 {[%clk 0:02:53]} 12. Qe2 {[%clk 0:03:04.7]}
12... h5 {[%clk 0:02:52.4]} 13. Bh4 {[%clk 0:02:47.4]} 13... f6 {[%clk
0:02:41.9]} 14. f3 {[%clk 0:02:39.3]} 14... c5 {[%clk 0:02:23.9]} 15. Nb3 {[%clk
0:02:39.8]} 15... Nc6 {[%clk 0:02:24.3]} 16. Bf2 {[%clk 0:02:38]} 16... c4
{[%clk 0:02:06.2]} 17. Nd2 {[%clk 0:02:24.3]} 17... Bh3 {[%clk 0:01:58.6]} 18.
Be3 {[%clk 0:02:21.9]} 18... Nd4 {[%clk 0:01:55.4]} 19. Bxd4 {[%clk 0:02:04.6]}
19... Rxd4 {[%clk 0:01:57.3]} 20. Rf2 {[%clk 0:01:54.6]} 20... Bc5 {[%clk
0:01:51.2]} 21. Kh1 {[%clk 0:01:51.8]} 21... Be6 {[%clk 0:01:37.8]} 22. Nf1
{[%clk 0:01:52.4]} 22... Rhd8 {[%clk 0:01:32.6]} 23. Qe1 {[%clk 0:01:51.1]}
23... h4 {[%clk 0:01:25.4]} 24. Ne3 {[%clk 0:01:51.2]} 24... h3 {[%clk
0:01:21.8]} 25. g4 {[%clk 0:01:51]} 25... Qg5 {[%clk 0:01:08.8]} 26. Re2 {[%clk
0:01:51.7]} 26... c6 {[%clk 0:00:57.9]} 27. Rd1 {[%clk 0:01:32.3]} 27... Rxd1
{[%clk 0:00:57.4]} 28. Ncxd1 {[%clk 0:01:32.8]} 28... Bd6 {[%clk 0:00:49]} 29.
Qf1 {[%clk 0:01:14.1]} 29... Qa5 {[%clk 0:00:39.7]} 30. a3 {[%clk 0:01:04.6]}
30... Be5 {[%clk 0:00:33.1]} 31. c3 {[%clk 0:01:02.8]} 31... Qa4 {[%clk
0:00:31]} 32. Nc2 {[%clk 0:00:47.9]} 32... Bf4 {[%clk 0:00:21.4]} 33. Nf2 {[%clk
0:00:39.9]} 33... Rd3 {[%clk 0:00:17.8]} 34. Nxh3 {[%clk 0:00:36.8]} 34... Bc7
{[%clk 0:00:18.9]} 35. Nd4 {[%clk 0:00:37.5]} 35... Rd1 {[%clk 0:00:19.4]} 36.
Re1 {[%clk 0:00:37.3]} 36... Rxe1 {[%clk 0:00:19.3]} 37. Qxe1 {[%clk 0:00:39.2]}
37... Bd7 {[%clk 0:00:21]} 38. Qd2 {[%clk 0:00:37]} 38... c5 {[%clk 0:00:21.7]}
39. Nf5 {[%clk 0:00:37.9]} 39... g6 {[%clk 0:00:21.4]} 40. Ne7+ {[%clk
0:00:38.5]} 40... Kd8 {[%clk 0:00:22]} 41. Nd5 {[%clk 0:00:39.4]} 41... Be5
{[%clk 0:00:21.6]} 42. Nf2 {[%clk 0:00:33.9]} 42... g5 {[%clk 0:00:22.1]} 43.
Kg2 {[%clk 0:00:31.5]} 43... Ke8 {[%clk 0:00:23.3]} 44. Ne3 {[%clk 0:00:31.8]}
44... Bf4 {[%clk 0:00:21.6]} 45. Qe2 {[%clk 0:00:32.9]} 45... Qb3 {[%clk
0:00:22.3]} 46. Qxc4 {[%clk 0:00:29.7]} 46... Qxb2 {[%clk 0:00:21.4]} 47. Qg8+
{[%clk 0:00:29.4]} 47... Ke7 {[%clk 0:00:22.8]} 48. Nf5+ {[%clk 0:00:31]} 48...
Bxf5 {[%clk 0:00:23.4]} 49. gxf5 {[%clk 0:00:32.1]} 49... Be3 {[%clk 0:00:24.1]}
50. Qe6+ {[%clk 0:00:33.6]} 50... Kd8 {[%clk 0:00:25.5]} 51. Qxf6+ {[%clk
0:00:35.5]} 51... Kc7 {[%clk 0:00:26.7]} 52. Qe5+ {[%clk 0:00:36.8]} 52... Kb6
{[%clk 0:00:26.4]} 53. Qg3 {[%clk 0:00:38]} 53... Qxc3 {[%clk 0:00:26.4]} 54.
Qd6+ {[%clk 0:00:32.3]} 54... Ka7 {[%clk 0:00:27.7]} 55. Qd3 {[%clk 0:00:32.8]}
55... Qc1 {[%clk 0:00:28.6]} 56. f6 {[%clk 0:00:30.3]} 56... Bxf2 {[%clk
0:00:29.3]} 57. f7 {[%clk 0:00:20.3]} 57... Qg1+ {[%clk 0:00:08.7]} 58. Kh3
{[%clk 0:00:20.8]} 58... c4 {[%clk 0:00:09.9]} 59. Qxc4 {[%clk 0:00:14.7]} 59...
Bc5 {[%clk 0:00:11]} 60. e5 {[%clk 0:00:12.7]} 60... Qe3 {[%clk 0:00:11.1]} 61.
Qd5 {[%clk 0:00:07.8]} 61... Qxa3 {[%clk 0:00:09.4]} 62. e6 {[%clk 0:00:08.8]}
62... Be7 {[%clk 0:00:10.4]} 63. Kg4 {[%clk 0:00:08.9]} 63... a5 {[%clk
0:00:11.7]} 64. f4 {[%clk 0:00:10]} 64... a4 {[%clk 0:00:12.9]} 65. fxg5 {[%clk
0:00:10.7]} 65... Qb4+ {[%clk 0:00:14.3]} 66. Kf5 {[%clk 0:00:11.4]} 66... a3
{[%clk 0:00:14.2]} 67. g6 {[%clk 0:00:11.8]} 67... Qb2 {[%clk 0:00:15.5]} 68.
Qa5+ {[%clk 0:00:11.6]} 68... Kb8 {[%clk 0:00:16.1]} 69. g7 {[%clk 0:00:08.7]}
69... Qxg7 {[%clk 0:00:16.7]} 70. Qa4 {[%clk 0:00:09.2]} 70... Qf6+ {[%clk
0:00:17.7]} 71. Kg4 {[%clk 0:00:10.5]} 71... Qxe6+ {[%clk 0:00:19.2]} 72. Kf3
{[%clk 0:00:12.4]} 72... Qxf7+ {[%clk 0:00:20.6]} 73. Ke4 {[%clk 0:00:14.3]}
73... a2 {[%clk 0:00:21.5]} 74. Kd3 {[%clk 0:00:16.2]} 74... Qd5+ {[%clk
0:00:21.4]} 75. Kc2 {[%clk 0:00:17]} 75... Bf6 {[%clk 0:00:22.7]} 76. Qe8+
{[%clk 0:00:17.7]} 76... Ka7 {[%clk 0:00:23.4]} 77. Qa4+ {[%clk 0:00:18.3]}
77... Kb6 {[%clk 0:00:24.7]} 78. Qb4+ {[%clk 0:00:19.8]} 78... Kc6 {[%clk
0:00:26]} 79. Qa4+ {[%clk 0:00:20.9]} 79... Kd6 {[%clk 0:00:26.7]} 80. Qf4+
{[%clk 0:00:19.1]} 80... Be5 {[%clk 0:00:27.6]} 81. Qf8+ {[%clk 0:00:19.9]}
81... Kc6 {[%clk 0:00:29.1]} 82. Qg8 {[%clk 0:00:19.8]} 82... Qxg8 {[%clk
0:00:29.6]} 0-1